Cogmind - Beta 15 @@@ ROGUE MODE // 2025.08.02 @ 22:26:29 Player: beans Result: Destroyed by S-27 Virus with Autogun Performance ------------- Evolutions (3) 1500 Regions Visited (6) 1200 Robots Destroyed (28) 140 Value Destroyed (821) 821 Prototype IDs (12) 240 Alien Tech Used (0) 0 Bonus (260) 260 TOTAL SCORE: 4161 Bonus ------- Follower Combat Kills 60 Entered Garrisons 200 Cogmind --------- Core Integrity 0/700 Matter 300/300 Energy 100/100 System Corruption 0% Temperature Cool (0) Movement Core (50) Location -7/Garrison Parts ------- > --- POWER (2) -------- (None) > --- PROPULSION (4) --- (None) > --- UTILITY (3) ------ Weapon Cycler Graphene Brace > --- WEAPON (4) ------- (None) > --- INVENTORY (5) ---- Subdweller Power Source Light Deuterium Engine Thief Drone Bay (3/3) Gamma Bomb Trap Peak State ------------ > --- POWER ------------ Nuclear Core > --- PROPULSION ------- Cargo Legs > --- UTILITY ---------- High-capacity Matter Pod Makeshift Trap Scanner Weapon Cycler Graphene Brace Makeshift System Shield > --- WEAPON ----------- Subdweller Laser Gauss Rifle > --- INVENTORY -------- Subdweller Power Source Light Deuterium Engine Thief Drone Bay [Rating: 48] Favorites ----------- Power Subdweller Power Source Engine Subdweller Power Source Power Core Nuclear Core Propulsion Light Treads Treads Light Treads Leg Cargo Legs Utility Thief Drone Bay Device Thief Drone Bay Storage High-capacity Matter Pod Hackware Makeshift Hacking Suite Weapon Subdweller Beam Cannon Energy Gun Riot Gun Energy Cannon Subdweller Beam Cannon Ballistic Gun Barrage Gun Ballistic Cannon Battle Cannon Launcher Grenade Launcher Build | -11 -10 -10 -10 -8 -7 -7 ------- Run | Yrd Mat Min Sub Mat Fac Gar Slots Evolved 6 | . . . . 4 2 . Power 1 | . . . . 1 . . Propulsion 2 | . . . . . 2 . Utility 1 | . . . . 1 . . Weapon 2 | . . . . 2 . . Parts Attached 23 | 5 . 2 10 5 1 . Power 4 | 1 . . 2 . 1 . Engine 3 | 1 . . 2 . . . Core 1 | . . . . . 1 . Reactor . | . . . . . . . Propulsion 3 | 2 . . 1 . . . Treads 2 | 2 . . . . . . Leg 1 | . . . 1 . . . Wheel . | . . . . . . . Hover . | . . . . . . . Flight . | . . . . . . . Utility 7 | . . 1 3 3 . . Device 4 | . . 1 1 2 . . Storage 1 | . . . . 1 . . Processor . | . . . . . . . Hackware 2 | . . . 2 . . . Protection . | . . . . . . . Artifact . | . . . . . . . Weapon 9 | 2 . 1 4 2 . . Energy Gun 2 | . . . 1 1 . . Energy Cannon 1 | . . . 1 . . . Ballistic Gun 4 | 2 . . 1 1 . . Ballistic Cannon 1 | . . . 1 . . . Launcher 1 | . . 1 . . . . Special Weapon . | . . . . . . . Impact Weapon . | . . . . . . . Slashing Weapon . | . . . . . . . Piercing Weapon . | . . . . . . . Special Melee Weapon . | . . . . . . . Unidentified Prototypes 1 | . . 1 . . . . Parts Lost 11 | . . . 2 4 . 5 Power 2 | . . . 1 . . 1 Propulsion 1 | . . . . . . 1 Utility 2 | . . . . 1 . 1 Weapon 6 | . . . 1 3 . 2 Highest Loss Streak 5 | . . . 1 4 . 5 To Critical Strikes . | . . . . . . . Average Backups 3 | . . 1 3 4 3 3 Power . | . . . . 1 2 2 Propulsion . | . . . . . . . Utility . | . . . . 1 1 1 Weapon 2 | . . 1 2 1 . . Tool/Special . | . . . . . . . Unused Backups 1 | . . . . . . 1 Power 1 | . . . . . . 1 Propulsion . | . . . . . . . Utility . | . . . . . . . Weapon . | . . . . . . . Tool/Special . | . . . . . . . Average Slot Usage (%) 75 | . 71 72 81 52 56 50 Engine 9 | . 14 14 10 . . . Treads 9 | . 28 28 8 . . . Leg 6 | . . . 7 7 6 4 Device 12 | . . 1 13 11 20 18 Hackware 14 | . . . 17 13 6 4 Energy Gun 4 | . . . 5 1 6 4 Energy Cannon 4 | . . . 6 . . . Ballistic Gun 9 | . 28 14 8 7 6 3 Launcher 2 | . . 14 1 5 . . Peak Build Rating 48 | 5 5 12 47 45 48 48 Average Rating 29 | 3 5 5 31 39 46 38 On Entrance 22 | . 5 5 12 41 45 48 Naked Turns . | . . . . . . . Heaviest Build 26 | 8 8 14 20 19 26 26 Greatest Support 55 | 40 40 40 55 55 55 55 Greatest Overweight (x) 5 | . . . . . . 5 Average Overweight (x) . | . . . . . . . Largest Inventory Capacity 5 | 5 5 5 5 5 5 5 Average Capacity 5 | 5 5 5 5 5 5 5 Most Carried 5 | 2 1 2 5 5 4 5 Average Carried 3 | . . 1 3 4 3 3 Final Capacity 5 | 5 5 5 5 5 5 5 Final Carried 4 | . 1 1 4 3 3 4 Class Distribution -------------------- 38% | Mutant 27% | Hacker-Mutant 24% | Derelict-Mutant 5% | Scavenger-Mutant 3% | Derelict-Skirmisher Dominant Class ---------------- Mutant | -10/Materials Mutant | -10/Mines Derelict-Mutant | -10/Subcaves Hacker-Mutant | -8/Materials Scavenger-Mutant | -7/Factory Mutant | -7/Garrison Resources | -11 -10 -10 -10 -8 -7 -7 ----------- Run | Yrd Mat Min Sub Mat Fac Gar Matter Collected 1002 | 217 . 55 318 322 . 90 Remotely . | . . . . . . . Salvage Created 868 | . . 12 346 463 . 47 Parts 64 | . . 1 32 26 . 5 Haulers Intercepted . | . . . . . . . Recyclers Shooed 2 | . . . . 2 . . Parts Field Recycled . | . . . . . . . Retrieved Matter . | . . . . . . . Parts Self-Destructed 12 | . . . 12 . . . Prevented . | . . . . . . . Kills | -11 -10 -10 -10 -8 -7 -7 ------- Run | Yrd Mat Min Sub Mat Fac Gar Combat Hostiles Destroyed 23 | . . 3 12 7 . 1 Guns 10 | . . . 7 2 . 1 Cannons 7 | . . . 3 4 . . AOE 6 | . . 3 2 1 . . Classes Destroyed 9 | . . 1 2 6 . . Builder 2 | . . . . 2 . . Recycler 1 | . . . . 1 . . Watcher 2 | . . . . 2 . . Swarmer 9 | . . 3 6 . . . Grunt 5 | . . . . 4 . 1 Sentry 1 | . . . 1 . . . Specialist 2 | . . . . 2 . . Heavy 1 | . . . . 1 . . Subdweller 5 | . . . 5 . . . Best Kill Streak 7 | . . 3 3 7 . 1 Combat Bots Only 4 | . . 3 3 4 . 1 Max Kills in Single Turn 2 | . . 1 2 2 . 1 Gunslinging . | . . . . . . . Exploded 2 | . . 1 2 1 . . Melee . | . . . . . . . Uniques/NPCs Destroyed . | . . . . . . . Combat | -11 -10 -10 -10 -8 -7 -7 -------- Run | Yrd Mat Min Sub Mat Fac Gar Hostile Shots Fired 215 | . . 6 48 51 . 110 Missed 78 | . . 2 17 17 . 42 Hits 137 | . . 4 31 34 . 68 Projectile 137 | . . 4 31 34 . 68 Critical Strikes 1 | . . . . 1 . . Damage Taken 2455 | . . 36 666 736 . 1017 Core 1003 | . . 9 120 171 . 703 Absorbed by Shields . | . . . . . . . Core Remaining (%) 72 | 100 . . 48 68 . . Volleys Fired 105 | . 1 5 60 32 . 7 Largest 3 | . 2 2 2 3 . 2 Hottest 121 | . 40 50 80 121 . 88 Shots Fired 169 | . 2 10 71 72 . 14 Gun 111 | . 2 5 44 46 . 14 Cannon 48 | . . . 27 21 . . Launcher 10 | . . 5 . 5 . . Special . | . . . . . . . Kinetic 104 | . 2 5 32 58 . 7 Thermal 43 | . . . 27 9 . 7 Explosive 10 | . . 5 . 5 . . Electromagnetic 12 | . . . 12 . . . Robot Hit Streak 9 | . 2 . 9 5 . 4 Robot Miss Streak 3 | . . . 2 3 . 3 Penetration Max 1 | . . . . 1 . 1 Secondary Targets . | . . . . . . . Shots Hit Robots 84 | . 2 . 34 41 . 7 Core Hits 54 | . 1 2 18 28 . 5 Critical Kills 1 | . . . 1 . . . Critical Parts Destroyed . | . . . . . . . Critical Strikes 1 | . . . 1 . . . Destroy 1 | . . . 1 . . . Melee Attacks . | . . . . . . . Impact . | . . . . . . . Slashing . | . . . . . . . Piercing . | . . . . . . . Sneak Attacks . | . . . . . . . Combat Hostiles . | . . . . . . . Follow-up Attacks . | . . . . . . . Damage Inflicted 2280 | . 18 279 697 1130 . 156 Guns 1072 | . 18 . 439 471 . 144 Cannons 512 | . . . 194 318 . . Explosions 684 | . . 279 64 341 . . Melee . | . . . . . . . Ramming 12 | . . . . . . 12 Kinetic 1153 | . 18 . 325 724 . 86 Thermal 381 | . . . 258 65 . 58 Explosive 620 | . . 279 . 341 . . Electromagnetic 114 | . . . 114 . . . Impact . | . . . . . . . Slashing . | . . . . . . . Piercing . | . . . . . . . Highest Corruption . | . . . . . . . Average Corruption . | . . . . . . . Corruption Purged . | . . . . . . . Corruption Blocked . | . . . . . . . Overload Shots . | . . . . . . . Overflow Damage 58 | . . 27 . 31 . . Projectiles 4 | . . . . 4 . . Explosions 54 | . . 27 . 27 . . Melee . | . . . . . . . Knockbacks 6 | . . . . 5 . 1 Impact 1 | . . . . . . 1 Kinetic 3 | . . . . 3 . . Secondary 2 | . . . . 2 . . Self-Inflicted Damage 46 | . . . . 40 . 6 Shots 1 | . . . . 1 . . Rammed 1 | . . . . . . 1 Targets Rammed 1 | . . . . . . 1 Kicked . | . . . . . . . Crushed . | . . . . . . . Highest Temperature 175 | . . . 20 169 . 175 Average Temperature 66 | . . . 8 75 . 82 Received Heat Transfer 543 | . . . 102 216 . 225 Siege Activations . | . . . . . . . Martial Activations . | . . . . . . . Shielding Activations . | . . . . . . . Robots Disrupted . | . . . . . . . Combat Hostiles . | . . . . . . . Robots Corrupted . | . . . . . . . Combat Hostiles . | . . . . . . . Parts Fried . | . . . . . . . Impact Corruptions . | . . . . . . . Robots Melted . | . . . . . . . Combat Hostiles . | . . . . . . . Parts Melted . | . . . . . . . Heat Transferred 459 | . . . 309 75 . 75 Parts Sabotaged . | . . . . . . . Parts Stolen . | . . . . . . . Parts Stripped . | . . . . . . . Power Chain Reactions 1 | . . . 1 . . . Alert | -11 -10 -10 -10 -8 -7 -7 ------- Run | Yrd Mat Min Sub Mat Fac Gar Maximum Alert Level . | . . . . . . . Low Security (%) 100 | 100 100 100 . 100 100 100 Level 1 . | . . . . . . . Level 2 . | . . . . . . . Level 3 . | . . . . . . . Level 4 . | . . . . . . . Level 5 . | . . . . . . . High Security . | . . . . . . . Max Security . | . . . . . . . Peak Influence 113 | . . 81 . 113 46 81 Initial 46 | . . . . 37 46 11 Average 31 | . . 27 . 43 31 40 Influence Increases 590 | . . 91 160 244 . 95 Destroy 0b10 Robot/C 360 | . . 60 140 140 . 20 Destroy 0b10 Robot/NC 25 | . . . . 25 . . Destroy Leader 74 | . . 10 20 44 . . Destroy Structure 56 | . . 21 . 35 . . Lose Combat Pursuer 75 | . . . . . . 75 Influence Decreases 534 | . . 70 109 213 87 55 Entered New Map 109 | . . . 12 35 57 5 Time Decay 315 | . . 70 77 138 30 . Lost Part 110 | . . . 20 40 . 50 Squads Dispatched 4 | . . . . 4 . . Investigation . | . . . . . . . Extermination . | . . . . . . . Reinforcement 3 | . . . . 3 . . Assault . | . . . . . . . Garrison 1 | . . . . 1 . . Intercept . | . . . . . . . Searches Triggered . | . . . . . . . Construction Impeded 1 | . . . . 1 . . Haulers Reinforced . | . . . . . . . Active Scanning Responses . | . . . . . . . Cargo Convoy Interrupts . | . . . . . . . Stealth | -11 -10 -10 -10 -8 -7 -7 --------- Run | Yrd Mat Min Sub Mat Fac Gar Distress Signals 2 | . . . . 2 . . Communications Jammed . | . . . . . . . Distress Signals . | . . . . . . . Times Spotted 50 | . 1 3 14 14 . 18 Peak Tracking Total 13 | . 1 3 3 5 . 13 Tactical Retreats 4 | . . . 1 . . 3 Traps | -11 -10 -10 -10 -8 -7 -7 ------- Run | Yrd Mat Min Sub Mat Fac Gar Traps Triggered 4 | . . . 3 . . 1 Indirectly . | . . . . . . . Trap Hack Attempts . | . . . . . . . Triggered . | . . . . . . . Disarmed . | . . . . . . . Reprogrammed . | . . . . . . . Reused . | . . . . . . . Traps Extracted . | . . . . . . . Installed 1 | . . . . . . 1 Triggered . | . . . . . . . Most Traps Carried 2 | . . . . . . 2 Machines | -11 -10 -10 -10 -8 -7 -7 ---------- Run | Yrd Mat Min Sub Mat Fac Gar Machines Disabled 1 | . . . 1 . . . Max in Single Turn 1 | . . . 1 . . . Machines Repaired . | . . . . . . . Machines Dismantled . | . . . . . . . Machines Sabotaged . | . . . . . . . Overloaded Fab Kills . | . . . . . . . Hacking | -11 -10 -10 -10 -8 -7 -7 --------- Run | Yrd Mat Min Sub Mat Fac Gar Machines Accessed 3 | . . 1 1 . 1 . Terminals . | . . . . . . . Fabricators . | . . . . . . . Repair Stations . | . . . . . . . Recycling Units . | . . . . . . . Scanalyzers . | . . . . . . . Garrison Access 1 | . . . . . 1 . Total Hacks 4 | . . 1 1 . 2 . Successful 3 | . . 1 1 . 1 . Failed 1 | . . . . . 1 . Catastrophic . | . . . . . . . Database Lockouts . | . . . . . . . Manual . | . . . . . . . Terminals . | . . . . . . . Fabricators . | . . . . . . . Repair Stations . | . . . . . . . Recycling Units . | . . . . . . . Scanalyzers . | . . . . . . . Garrison Access 2 | . . . . . 2 . Terminal Hacks 2 | . . 1 1 . . . Open Door 1 | . . 1 . . . . Proto ID Catalog 1 | . . . 1 . . . Fabricator Hacks . | . . . . . . . Repair Station Hacks . | . . . . . . . Recycling Unit Hacks . | . . . . . . . Scanalyzer . | . . . . . . . Garrison Access Hacks 1 | . . . . . 1 . Unlock Access 1 | . . . . . 1 . Unauthorized Hacks . | . . . . . . . Terminals . | . . . . . . . Fabricators . | . . . . . . . Repair Stations . | . . . . . . . Recycling Units . | . . . . . . . Scanalyzers . | . . . . . . . Garrison Access . | . . . . . . . Data Cores Recovered . | . . . . . . . Used . | . . . . . . . Hacking Detections 1 | . . . . . 1 . Full Trace Events . | . . . . . . . Feedback Events . | . . . . . . . Feedback Blocked . | . . . . . . . Robot Schematics Acquired . | . . . . . . . Robots Built . | . . . . . . . Authchips . | . . . . . . . Time . | . . . . . . . Total Robot Build Rating . | . . . . . . . Part Schematics Acquired . | . . . . . . . Parts Built . | . . . . . . . Authchips . | . . . . . . . Time . | . . . . . . . Total Part Build Rating . | . . . . . . . Parts Repaired . | . . . . . . . Time . | . . . . . . . Parts Recycled . | . . . . . . . Recycled Matter . | . . . . . . . Retrieved Matter . | . . . . . . . Retrieved Components . | . . . . . . . Parts Scanalyzed . | . . . . . . . Part Schematics Acquired . | . . . . . . . Parts Damaged . | . . . . . . . Bothacking | -11 -10 -10 -10 -8 -7 -7 ------------ Run | Yrd Mat Min Sub Mat Fac Gar Used RIF Installer . | . . . . . . . Robots Hacked . | . . . . . . . Non-combat . | . . . . . . . Combat . | . . . . . . . Robot Hacks Applied . | . . . . . . . Relay Couplers Released . | . . . . . . . Fabnet Peak Effective % . | . . . . . . . Robots Rewired . | . . . . . . . Allies Hacked . | . . . . . . . Hacks Repelled . | . . . . . . . Allies | -11 -10 -10 -10 -8 -7 -7 -------- Run | Yrd Mat Min Sub Mat Fac Gar Total Allies . | . . . . . . . Largest Group . | . . . . . . . Highest-Rated Group . | . . . . . . . Highest-Rated Ally . | . . . . . . . Total Orders 5 | . . . 4 1 . . EXPLORE 1 | . . . 1 . . . RETURN 4 | . . . 3 1 . . Ally Attacks 17 | . . . 13 4 . . Total Damage 97 | . . . 87 10 . . Kills 2 | . . . 2 . . . Allies Corrupted . | . . . . . . . Allies Melted . | . . . . . . . Intel | -11 -10 -10 -10 -8 -7 -7 ------- Run | Yrd Mat Min Sub Mat Fac Gar Active Infowar (turns) 406 | . . . 168 106 30 102 Traps 406 | . . . 168 106 30 102 Robot Analysis Total . | . . . . . . . Derelict Logs Recovered . | . . . . . . . Drone Launches 9 | . . 3 3 3 . . Drone Recoveries 9 | . . . 6 3 . . Exploration | -11 -10 -10 -10 -8 -7 -7 ------------- Run | Yrd Mat Min Sub Mat Fac Gar Turns Passed 3074 | 62 75 263 2161 304 75 134 Spaces Moved 1837 | 46 45 146 1342 125 39 94 Core 50 | 19 . . . . . 31 Treads 469 | 27 45 146 251 . . . Legs 1318 | . . . 1091 125 39 63 Wheels . | . . . . . . . Hover . | . . . . . . . Flight . | . . . . . . . Fastest Speed 50 | 50 160 160 130 130 130 50 Average Speed 135 | 114 160 160 135 130 130 112 Slowest Speed 300 | 160 160 160 160 130 130 300 Overloaded Moves . | . . . . . . . Propulsion Burnouts . | . . . . . . . Robots Hopped . | . . . . . . . Potential Cave-ins . | . . . . . . . Cave-ins Triggered . | . . . . . . . Exploration Rate (%) 25 | 5 13 43 73 14 2 28 Regions Visited 6 Branch Regions 2 Pre-discovered Areas . | . . . . . . . Known Exits Taken 1 | . . . . . 1 . Unknown Exits Taken 5 | 1 1 1 1 1 . . Scrap Searched 6 | . . 1 5 . . . Spaces Dug . | . . . . . . . Terrain Destroyed 81 | . . 35 5 41 . . Melee . | . . . . . . . Projectile 4 | . . . 3 1 . . AOE 77 | . . 35 2 40 . . Terrain Rammed . | . . . . . . . Walls Destroyed . | . . . . . . . Machines Disabled . | . . . . . . . Actions | -11 -10 -10 -10 -8 -7 -7 --------- Run | Yrd Mat Min Sub Mat Fac Gar Total 2257 | 55 46 165 1613 204 63 111 Wait 259 | . . 12 182 38 22 5 Move 1832 | 45 44 145 1341 124 39 94 Hop . | . . . . . . . Pick Up 22 | 5 1 1 10 2 1 2 Fast Attach 3 | . . . 1 2 . . Attach 16 | 5 . 1 4 5 1 . Detach 1 | . . . . 1 . . Swap 10 | . . 1 9 . . . Drop 7 | . . . 6 . . 1 Fire 105 | . 1 5 60 32 . 7 Melee . | . . . . . . . Ram 1 | . . . . . . 1 Kick . | . . . . . . . Crush . | . . . . . . . Escape Stasis . | . . . . . . . Rewire . | . . . . . . . Trap 1 | . . . . . . 1 Miscellaneous . | . . . . . . . Route ------- -11/Scrapyard -10/Materials -10/Mines -10/Subcaves -8/Materials -7/Factory -7/Garrison History --------- Turn | Location | Event 6 | -11/Scrapyard | Discovered new exit (range 16) 63 | -11/Scrapyard | Entered Materials 103 | -10/Materials | Discovered new exit (range 13) 138 | -10/Materials | Entered Mines 198 | -10/Mines | Met a Derelict bent on vengeance 311 | -10/Mines | Build established: Mutant 365 | -10/Mines | Found the Drone Emporium 370 | -10/Mines | Found Prototype Device 371 | -10/Mines | Identified Thief Drone Bay 391 | -10/Mines | Discovered new exit (range 5) 401 | -10/Mines | Entered Subcaves 401 | -10/Subcaves | Accompanied by 3 allies 885 | -10/Subcaves | Visited 4L-MR0's lab 1027 | -10/Subcaves | Found Cargo Legs 1029 | -10/Subcaves | Attached Cargo Legs, gained temporary slots: Utility x2 1089 | -10/Subcaves | Shifting Twisted Machinery released Battle Cannon 1147 | -10/Subcaves | Shifting Twisted Machinery released Barrage Gun 1154 | -10/Subcaves | Shifting Twisted Machinery released Riot Gun 1219 | -10/Subcaves | Shifting Twisted Machinery released Mak. System Shield 1325 | -10/Subcaves | Shifting Twisted Machinery released Battle Rifle 1333 | -10/Subcaves | Shifting Twisted Machinery released Battle Cannon 1402 | -10/Subcaves | Build established: Derelict-Mutant 2023 | -10/Subcaves | Build established: Hacker-Mutant 2302 | -10/Subcaves | Discovered new exit (range 6) 2393 | -10/Subcaves | Core integrity fell below 50% 2562 | -10/Subcaves | Entered Materials 2562 | -8/Materials | Evolved 4 slots: Power x1, Utility x1, Weapon x2 2803 | -8/Materials | Discovered new exit (range 6) 2841 | -8/Materials | Garrison activated, responded to threat 2866 | -8/Materials | Entered Factory 2866 | -7/Factory | Evolved 2 slots: Propulsion x2 2873 | -7/Factory | Lost 4 parts (1u3w) 2941 | -7/Factory | Identified exit to Garrison 2941 | -7/Factory | Entered Garrison 2967 | -7/Garrison | Triggered checkpoint 3004 | -7/Garrison | Triggered checkpoint 3053 | -7/Garrison | Core integrity fell below 50% 3066 | -7/Garrison | Core integrity fell below 20% 3075 | -7/Garrison | Destroyed by S-27 Virus with Autogun Last Messages --------------- Gauss Rifle destroyed. C-30 ARC bursts open, deploying its payload. S-27 Virus unfolds itself. Cargo Legs destroyed. Temporary Utility slot lost. Sub. Laser destroyed. Nuclear Core destroyed. Slammed into G-47 Trooper. G-47 Trooper knocked back. Acquired 90 matter. Hcp. Matter Pod destroyed. Triggered Hellfire Trap. An explosion rips through the floor. Storage Shell breached. A-02 Transporter destroyed. Acquired Gamma Bomb Trap. The unstable cave ceiling collapses. Dropped Gamma Bomb Trap. Installed Gamma Bomb Trap. S-27 Virus destroyed. Map ----- +----------------------------------------------------+ | ??????????????????????????????????????????? | | ??????????????????????????????????????????? | | ??????????????????????????????????????????? | | ??????????????????????????????????????????? | | ??????????????????????????????????????????? | | ??????????????????????????????????????????? | | ??????????????????????????????????????????? | | ??????????????????????????????????????????? | | ??????????????????????????????????????????? | | ?????????####?????????????????????????????? | | ?????????#""#?????????????????????????????? | | ?????????# T#?????????????????????????????? | | ?#???????# "#?????????????????????????????? | | ?# ??????# #??????????????????????????????? | | ?# ?????# #???#####??????????????????????? | | ?# ????# #???# #??????????????????????? | | ???# #### ##### #??????????????????????? | | ???# #??????????????????????? | | ???# #??????????????????????? | | ???# ## ##########??????????????????????? | | ???# ??# #???????????????????????????????? | | ???#???# #???????????????????????????????? | | ???????# #?????????????###???????????????? | | ???????# #?????????????# "???????????????? | | ???????# #?????????????# "????"??????????? | | ???????# #????????????##@"""" """"#??????? | | ???????# ########????## %[ #??????? | | ???????# ##"""""#???## ^s*# """???????? | | ??###??# #?# #????# s m "?????????? | | ###T####* ### ###### #s= % m "?????????? | | [%= " g & ""????????? | | != " " g & #??????? | | ######## ### ##### # "" """"#??????? | | ?# #???# #?# #?? + ### " "??????????? | | ?# #???# #?#####?### #?# " "?"??????????? | | ##### #?????????# #?######????????????? | | ?# + #?????????# #???????????????????? | | ## ##### !#?????????# #???????????????????? | | # #???# #?????????! !???????????????????? | | ##+##### #?????????! !???????????????????? | | #?????????###???????????????????? | | % #???????????????????????????????? | | ########+##???????????????????????????????? | | #??????#"#????????????????????????????????? | | "??????# #????????????????????????????????? | | "?????? #????????????????????????????????? | | "??????###????????????????????????????????? | | "?????????????????????????????????????????? | | #?????????????????????????????????????????? | | #?????????????????????????????????????????? | +----------------------------------------------------+ Best States ------------- Heat Dissipation 34 Energy Generation 15 Energy Capacity 250 Matter Stores 350 Matter Capacity 500 Sight Range 16 Terrain Scan Density 10 Weapon Cycling 15 Evasion (%) 55 Recoil Reduction 2 Offensive Hacking 11 Defensive Hacking 11 Item Schematics ----------------- None Robot Schematics ------------------ None Fabricated ------------ Nothing Repaired ---------- Nothing Alien Tech Used ----------------- None Achievements -------------- None Challenges ------------ None Game ------ Seed RelayMakeshiftBeacon Manual? 0 Play Time 00:18:58 Cumulative 77.8 hours Start 2025.08.02 @ 18:10:54 End 2025.08.02 @ 22:26:29 Sessions 2 Manual Loads 0 Difficulty Rogue Special Mode None Game No. 315 Rogue 315 Adventurer 0 Explorer 0 Win Type - Total 0 Types 0/0/0/0/0/0/0/0/0/0 Lore% 28 Gallery% 34 Achievement% 28 Wizard Run 0 Options --------- Layout 2 ASCII 0 Keyboard 0 Movement Mouse Keybinds 0 Fullscreen 2 Font 24/Smallcaps Map View 50x44 Zoom Use 0% Tactical HUD 0 Map Filters NONE Filters NONE Steam 1 RUN: 43e9364b-7f4b-4bbe-8e1e-d16a92984d9e